bitfinex/quotes_ETHUSD_20250706
["timestamp","ask_amount","ask_price","bid_price","bid_amount"]
[1751830292845,0.001,2540.9,2540.8,8.847]
[1751830294046,0.001,2540.9,2540.8,12.78276826]
[1751830295446,0.001,2540.9,2540.8,8.847]
[1751830296141,0.001,2540.9,2540.8,4.83576826]
[1751830296446,0.001,2540.9,2540.8,12.78176826]
[1751830297148,0.001,2540.9,2540.8,8.846]
[1751830299070,0.001,2540.9,2540.8,12.78176826]
[1751830299767,0.001,2540.9,2540.8,0.9]
[1751830299977,0.001,2540.9,2540.8,8.844]
[1751830300141,0.001,2540.9,2540.8,7.944]
[1751830301075,0.001,2540.9,2540.8,7.942]
[1751830302058,0.001,2540.9,2540.7,7.942]
[1751830302986,0.001,2540.9,2540.3,0.8029]
[1751830303280,13.39522592,2540.8,2540.4,7.942]
[1751830304157,13.39522592,2540.8,2540.4,11.87837954]
[1751830304671,13.39522592,2540.8,2540.4,7.942]
[1751830305457,13.39522592,2540.8,2540.3,3.93648468]
[1751830305693,13.89257863,2540.8,2540.4,7.943]
[1751830306582,13.89257863,2540.8,2540.4,11.87937997]
[1751830306770,9.95674455,2540.8,2540.4,11.87937997]
[1751830307163,9.95674455,2540.8,2540.3,3.93650903]
[1751830307376,8.69189184,2540.6,2540.3,7.943]
[1751830310973,8.69189184,2540.6,2540.2,3.93661228]
[1751830311176,8.69189184,2540.6,2540.2,11.87761228]
[1751830311880,8.69189184,2540.6,2540.3,3.93653975]
[1751830312587,8.69189184,2540.6,2540.2,7.941]
[1751830312793,8.69189184,2540.6,2540.2,11.87769426]
[1751830313792,8.69189184,2540.6,2540.3,3.93654108]
[1751830314883,8.69189184,2540.6,2540.2,3.93657731]
[1751830315092,0.8099,2540.5,2540.2,11.87557731]
[1751830317584,0.8099,2540.5,2540.3,3.93653537]
[1751830318592,0.8099,2540.5,2540.2,11.87562622]
[1751830319394,0.8099,2540.5,2540.3,3.93652359]
[1751830320466,0.8099,2540.5,2540.2,7.939]
[1751830320693,0.8099,2540.5,2540.4,3.93638797]
[1751830321477,0.8099,2540.5,2540.3,3.93646687]
[1751830322199,0.8099,2540.5,2540.4,3.93638797]
[1751830322373,2.7285,2540.7,2540.4,3.93638797]
[1751830322787,4.26421705,2540.7,2540.3,3.93645595]
[1751830323704,4.26421705,2540.7,2540.4,3.9363783]
[1751830324706,4.26421705,2540.7,2540.3,3.93645729]
[1751830325809,4.26421705,2540.7,2540.4,3.93637382]
[1751830327219,2.7285,2540.7,2540.5,3.93611758]
[1751830327403,1.933,2540.7,2540.6,3.93607809]
[1751830327584,1.933,2540.7,2540.5,3.93616296]
[1751830328102,1.933,2540.7,2540.6,3.93607809]
[1751830328292,1.928,2540.9,2540.6,3.93607809]
[1751830328592,0.36878862,2540.8,2540.6,3.93607809]
[1751830329914,0.36878862,2540.8,2540.4,0.7563]
[1751830330115,0.36878862,2540.8,2540.4,4.69260965]
[1751830330613,0.36878862,2540.8,2540.4,3.93630965]
[1751830331431,0.36878862,2540.7,2540.4,3.93630965]
[1751830331638,14.55550996,2540.9,2540.4,3.93630965]
[1751830331787,0.36902216,2540.8,2540.4,3.93630965]
[1751830332219,0.36902216,2540.7,2540.4,3.93630965]
[1751830332407,14.55550996,2540.9,2540.4,3.93630965]
[1751830332623,0.36913865,2540.8,2540.4,3.93630965]
[1751830332911,0.36913865,2540.7,2540.4,3.93630965]
[1751830333116,14.55550996,2540.9,2540.4,3.93630965]
[1751830333117,0.36923723,2540.6,2540.4,3.93630965]
[1751830333318,14.55550996,2540.9,2540.4,3.93630965]
[1751830333498,0.36923789,2540.8,2540.5,3.9362329]
[1751830333823,0.36923789,2540.7,2540.5,3.9362329]
[1751830333995,0.36923789,2540.7,2540.4,3.93629634]
[1751830334320,0.36923886,2540.6,2540.4,3.93629634]
[1751830334523,14.55550996,2540.9,2540.4,3.93629634]
[1751830334822,0.36923966,2540.8,2540.5,3.93623134]
[1751830335121,0.36923966,2540.7,2540.5,3.93623134]
[1751830335296,10.61989184,2540.9,2540.5,3.93623134]
[1751830335498,0.36923912,2540.8,2540.5,3.93623134]
[1751830335716,0.36923912,2540.7,2540.5,3.93623134]
[1751830335921,0.36923912,2540.6,2540.4,3.93630481]
[1751830336238,3.93581205,2540.8,2540.4,3.93630481]
[1751830336432,0.36924753,2540.7,2540.4,3.93630481]
[1751830337241,3.93581205,2540.8,2540.4,3.93630481]
[1751830337536,0.36924532,2540.7,2540.4,3.93630481]
[1751830337739,0.36924532,2540.6,2540.4,3.93630481]
[1751830337936,14.5555762,2540.9,2540.4,3.93630481]
[1751830338143,0.36925021,2540.8,2540.4,3.93630481]
[1751830338340,0.36925021,2540.7,2540.4,3.93630481]
[1751830338645,0.36925021,2540.7,2540.3,11.87245504]
[1751830338941,0.36925021,2540.7,2540.4,3.93835961]
[1751830339331,0.36925021,2540.7,2540.5,3.936207]
[1751830339537,11.928,2540.9,2540.5,3.93621341]
[1751830339714,0.36923596,2540.8,2540.6,3.93606952]
[1751830339914,0.36923596,2540.7,2540.6,3.93606952]
[1751830340128,0.36923596,2540.7,2540.6,4.83606952]
[1751830340326,0.36923596,2540.8,2540.6,4.83606952]
[1751830340543,0.36923596,2540.7,2540.6,4.83606952]
[1751830340749,0.36923596,2540.8,2540.6,4.83606952]
[1751830340947,0.36923596,2540.7,2540.6,4.83606952]
[1751830341112,0.36923596,2540.8,2540.6,4.83606952]
[1751830341314,0.36923596,2540.7,2540.6,4.83606952]
[1751830341739,0.36923596,2540.8,2540.6,4.83606952]
[1751830341958,0.36923596,2540.7,2540.6,4.83606952]
[1751830342120,0.36923596,2540.8,2540.6,4.83606952]
[1751830342323,0.36923596,2540.7,2540.6,4.83606952]
[1751830342525,0.36923596,2540.8,2540.6,4.83606952]
[1751830342823,0.36923596,2540.7,2540.6,4.83606952]
[1751830343013,0.36923596,2540.8,2540.6,4.83606952]
[1751830343219,0.36923596,2540.7,2540.6,4.83606952]
[1751830343717,0.001,2540.9,2540.6,4.83606952]
[1751830343933,0.36919799,2540.8,2540.6,3.93600365]
[1751830345153,0.36919799,2540.8,2540.5,4.70665385]
[1751830345352,0.001,2540.9,2540.5,4.70665385]
[1751830345658,0.37013378,2540.9,2540.5,4.70665385]
[1751830345965,0.37013378,2540.9,2540.6,3.93606771]
[1751830346263,0.36913383,2540.8,2540.6,3.93606771]
[1751830346464,0.001,2540.9,2540.6,3.93606771]
[1751830346762,0.37011566,2540.9,2540.6,3.93606771]
[1751830347465,0.37011566,2540.9,2540.5,4.70664454]
[1751830347831,12.99762627,2540.9,2540.4,3.93830168]
[1751830348047,0.36911566,2540.8,2540.4,3.93830168]
[1751830349244,12.62851061,2540.9,2540.4,3.93830168]
[1751830349542,0.36911178,2540.8,2540.4,3.93830168]
[1751830350774,8.69189184,2540.5,2540.4,0.002]
[1751830350972,13.42352486,2540.5,2540.4,0.002]
[1751830351145,13.79267803,2540.5,2540.4,0.002]
[1751830352373,13.7925276,2540.5,2540.4,0.002]
[1751830352673,9.85629458,2540.5,2540.4,0.002]
[1751830357268,0.36900274,2540.5,2540.4,3.93838797]
[1751830357448,3.9366746,2540.9,2540.4,3.93838797]
[1751830357449,0.001,2540.9,2540.6,3.93607809]
[1751830357646,0.001,2540.9,2540.7,3.93581557]
[1751830357647,0.36975161,2540.9,2540.7,3.93581557]
[1751830357977,0.36975161,2540.9,2540.8,3.93576826]
[1751830357978,0.001,2540.9,2540.8,3.93576826]
[1751830358181,0.001,2540.9,2540.8,5.58618432]
[1751830358352,0.001,2540.9,2540.8,5.54682664]
[1751830358753,0.001,2540.9,2540.8,5.58618432]
[1751830360481,0.001,2540.9,2540.8,13.52618432]
[1751830360793,0.001,2540.9,2540.8,13.48682664]
[1751830361378,0.001,2540.9,2540.8,14.38682664]
[1751830361999,0.001,2540.9,2540.8,6.44682664]
[1751830362390,0.001,2540.9,2540.8,4.83576826]
[1751830362570,0.001,2540.9,2540.8,12.77376826]
[1751830368008,0.001,2540.9,2540.8,13.58956826]
[1751830369204,0.001,2540.9,2540.8,5.65156826]
[1751830369408,0.001,2540.9,2540.8,13.59756826]
[1751830369705,0.001,2540.9,2540.8,15.35091624]
[1751830369875,0.001,2540.9,2540.8,14.53511624]
[1751830373203,0.001,2540.9,2540.8,0.9]
[1751830373402,0.828,2540.9,2540.5,0.002]
[1751830373601,8.69189184,2540.7,2540.5,0.002]
[1751830373801,12.62783438,2540.7,2540.5,0.002]
[1751830374114,1.34548344,2540.6,2540.5,0.002]
[1751830375323,2.17248344,2540.6,2540.5,0.002]
[1751830377403,0.827,2540.6,2540.5,3.93823302]
[1751830378902,1.927,2540.7,2540.5,3.93823302]
[1751830379217,1.927,2540.7,2540.6,3.93607809]
[1751830380019,1.927,2540.7,2540.5,3.93817133]
[1751830381325,10.61889184,2540.7,2540.5,0.002]
[1751830381546,10.61889184,2540.7,2540.5,3.93823302]
[1751830384004,10.61889184,2540.7,2540.6,3.93607809]
[1751830385238,10.61889184,2540.7,2540.5,3.93815195]
[1751830386335,10.61889184,2540.7,2540.5,0.002]
[1751830387734,10.61889184,2540.7,2540.5,3.93820545]
[1751830390613,12.65154473,2540.7,2540.5,3.93820545]
[1751830390811,10.61889184,2540.7,2540.5,3.93820545]
[1751830392146,10.61889184,2540.7,2540.5,0.002]
[1751830396455,10.61889184,2540.7,2540.5,3.93818865]
[1751830396834,10.61889184,2540.7,2540.5,0.002]
[1751830397954,10.81569184,2540.7,2540.5,0.002]
[1751830399156,3.93607809,2540.6,2540.5,0.002]
[1751830399329,4.70927809,2540.6,2540.5,0.002]
[1751830399654,15.07769711,2540.6,2540.5,0.002]
[1751830400038,15.62769711,2540.6,2540.5,0.002]
[1751830400218,3.93638797,2540.4,2540.1,0.002]
[1751830400423,23.40178973,2540.2,2540.1,0.002]
[1751830400622,23.77020875,2540.2,2540.1,0.002]
[1751830400859,23.40178973,2540.2,2540.1,0.002]
[1751830401041,24.32033918,2540.2,2540.1,0.002]
[1751830401249,13.93700787,2540.0,2539.9,0.002]
[1751830401451,33.65864916,2540.0,2539.9,0.002]
[1751830401625,33.65851171,2540.0,2539.9,0.002]
[1751830402764,3.93762797,2539.6,2539.5,0.002]
[1751830402928,13.93793809,2539.4,2539.3,0.04305179]
[1751830403252,3.93840337,2539.1,2538.8,0.0430518]
[1751830403451,27.46919184,2539.1,2538.8,0.0430518]
[1751830403765,10.8183,2539.1,2538.8,0.0430518]
[1751830403968,10.36812131,2539.1,2538.9,3.93868633]
[1751830404459,10.0,2539.1,2538.8,3.98186238]
[1751830405038,10.0,2539.1,2538.9,3.93869471]
[1751830405244,10.0,2539.1,2538.8,3.98184461]
[1751830405557,10.0,2539.1,2538.8,3.98184369]
[1751830405956,10.0,2539.1,2538.8,0.0430518]
[1751830406660,13.93840337,2539.1,2538.8,0.0430518]
[1751830406862,10.0,2539.1,2538.8,0.0430518]
[1751830407082,10.0,2539.1,2538.8,3.98191379]
[1751830407235,10.0,2539.1,2538.8,0.0430518]
[1751830411180,21.90140337,2539.1,2538.8,0.0430518]
[1751830413287,17.963,2539.1,2538.8,0.0430518]
[1751830416111,17.963,2539.1,2538.8,3.98191943]
[1751830416504,22.72210337,2539.1,2538.8,0.0430518]
[1751830416802,10.0,2539.1,2538.8,0.0430518]
[1751830416999,19.902,2539.1,2538.8,0.0430518]
[1751830417159,19.903,2539.1,2538.8,3.98187564]
[1751830417366,19.903,2539.1,2538.8,4.78047564]
[1751830417896,11.938,2539.1,2538.8,4.78047564]
[1751830418202,11.938,2539.1,2538.8,0.8416518]
[1751830418565,11.938,2539.1,2538.8,4.78050923]
[1751830418760,24.56829521,2539.1,2538.8,0.0430518]
[1751830422779,24.93486211,2539.1,2538.8,0.0430518]
[1751830422979,20.99645874,2539.1,2538.8,0.0430518]
[1751830423183,24.93486211,2539.1,2538.8,0.0430518]
[1751830423388,24.93496602,2539.1,2538.8,0.0430518]
[1751830427631,14.76571361,2538.9,2538.8,0.0430518]
[1751830427909,23.09738442,2538.9,2538.8,0.0430518]
[1751830428792,22.27038442,2538.9,2538.8,0.0430518]
[1751830429197,20.27467081,2538.9,2538.8,0.0430518]
[1751830429890,24.21338442,2538.9,2538.8,0.0430518]
[1751830431884,24.21570293,2538.9,2538.8,0.0430518]
[1751830432194,25.04270293,2538.9,2538.8,0.0430518]
[1751830433514,38.6168461,2538.9,2538.8,0.0430518]
[1751830433914,39.1668461,2538.9,2538.8,0.0430518]
[1751830434701,38.79785678,2538.9,2538.8,0.0430518]
[1751830434905,39.16690262,2538.9,2538.8,0.0430518]
[1751830436353,38.61790262,2538.9,2538.8,0.0430518]
[1751830438701,39.16790262,2538.9,2538.8,0.0430518]
[1751830440737,38.79885678,2538.9,2538.8,0.0430518]
[1751830441039,39.16760882,2538.9,2538.8,0.0430518]
[1751830442214,15.13446565,2538.9,2538.8,0.0430518]
[1751830442414,12.30875204,2538.9,2538.8,0.0430518]
[1751830442625,16.24746565,2538.9,2538.8,0.0430518]
[1751830442828,12.30875204,2538.9,2538.8,0.0430518]
[1751830443010,12.50555204,2538.9,2538.8,0.8129518]
[1751830443210,12.50544502,2538.9,2538.8,0.8129518]
[1751830443507,12.50544502,2538.9,2538.8,0.0430518]
[1751830443508,18.08855359,2538.9,2538.8,0.0430518]
[1751830443707,40.39269676,2538.9,2538.8,0.0430518]
[1751830444808,40.94269676,2538.9,2538.8,0.0430518]
[1751830449346,40.94280021,2538.9,2538.8,0.0430518]
[1751830450838,36.07316857,2538.9,2538.8,0.0430518]
[1751830457425,43.84316857,2538.9,2538.8,0.0430518]
[1751830461136,43.4744201,2538.9,2538.8,0.0430518]
[1751830461336,43.84371305,2538.9,2538.8,0.0430518]
[1751830465765,43.84371305,2538.9,2538.8,1e-08]
[1751830466005,13.93948944,2538.4,2538.3,0.0430518]
[1751830466274,30.97929392,2538.4,2538.3,0.0430518]
[1751830466475,31.36755185,2538.4,2538.3,0.0430518]
[1751830467072,23.40155185,2538.4,2538.3,0.0430518]
[1751830467379,30.97929392,2538.4,2538.3,0.0430518]
[1751830467958,30.97929392,2538.4,2538.3,0.8225518]
[1751830467959,10.3692883,2538.4,2538.3,0.8225518]
[1751830468572,1.941,2538.9,2538.8,0.7657]
[1751830468775,2.31018755,2538.9,2538.8,4.70456875]
[1751830470252,0.36918755,2538.9,2538.8,0.7657]
[1751830470458,0.368756,2538.9,2538.8,0.7657]
[1751830470679,0.36875446,2538.9,2538.8,0.7657]
[1751830471373,9.6648,2539.0,2538.8,0.7657]
[1751830473894,9.6648,2539.0,2538.8,4.70455581]
[1751830474495,0.001,2539.0,2538.9,4.69831361]
[1751830474777,0.001,2539.0,2538.9,4.89511361]
[1751830476379,12.6441738,2539.0,2538.5,3.93925912]
[1751830476591,12.8409546,2539.0,2538.6,0.1968]
[1751830476885,8.70451153,2538.8,2538.6,4.13597439]
[1751830477287,8.70451153,2538.8,2538.6,0.1968]
[1751830477482,12.64338203,2538.8,2538.6,0.1968]
[1751830477661,12.64346047,2538.8,2538.4,0.9564]
[1751830479382,12.64346047,2538.8,2538.4,4.89588296]
[1751830479878,12.64346047,2538.8,2538.4,0.9564]
[1751830480553,3.93905058,2538.7,2538.4,0.9564]
[1751830482391,4.13585058,2538.7,2538.4,0.7596]
[1751830484095,12.64370533,2538.6,2538.4,0.7596]
[1751830484979,8.70451153,2538.6,2538.4,0.7596]
[1751830487484,4.13585668,2538.7,2538.4,0.7596]
[1751830487685,3.93919939,2538.6,2538.4,0.7596]
[1751830488405,4.13591079,2538.7,2538.4,0.7596]
[1751830488584,0.1968,2538.7,2538.4,0.7596]
[1751830489100,4.13588961,2538.7,2538.4,0.7596]
[1751830489300,3.93920215,2538.6,2538.4,0.7596]
[1751830489776,4.13588879,2538.7,2538.4,0.7596]
[1751830489979,12.64378698,2538.6,2538.3,0.0450518]
[1751830492813,12.64378698,2538.6,2538.4,0.002]
[1751830501519,12.87212424,2538.7,2538.4,0.002]
[1751830501520,8.90131153,2538.7,2538.4,0.002]
[1751830501718,0.36888648,2538.6,2538.4,0.002]
[1751830501906,2.31188648,2538.6,2538.4,0.7774]
[1751830502083,1.943,2538.6,2538.4,0.7774]
[1751830504328,5.88219468,2538.6,2538.4,0.7774]
[1751830504820,5.88219468,2538.6,2538.4,0.002]
[1751830505204,0.36902896,2538.5,2538.4,0.002]
[1751830506815,5.88219468,2538.6,2538.4,0.002]
[1751830507019,0.36940112,2538.5,2538.4,0.002]
[1751830508293,4.30873537,2538.5,2538.4,0.002]
[1751830509632,0.36940112,2538.5,2538.4,0.002]
[1751830509999,0.36950904,2538.5,2538.4,0.002]
[1751830510333,4.30884329,2538.5,2538.4,0.002]
[1751830510516,13.01335482,2538.5,2538.4,0.002]
[1751830510695,13.79195482,2538.5,2538.4,0.002]
[1751830513114,13.79182684,2538.5,2538.4,0.002]
[1751830516108,13.7917283,2538.5,2538.4,0.002]
[1751830519133,13.42244578,2538.5,2538.4,0.002]
[1751830519441,13.79166145,2538.5,2538.4,0.002]
[1751830522306,13.7916334,2538.5,2538.4,0.002]
[1751830522509,23.7916334,2538.5,2538.4,0.002]
[1751830525444,23.79163263,2538.5,2538.4,0.002]
[1751830528625,23.01303263,2538.5,2538.4,0.002]
[1751830528952,10.36918685,2538.5,2538.4,0.002]
[1751830529253,20.46898685,2538.5,2538.4,0.002]
[1751830531046,12.31118685,2538.5,2538.4,0.002]
[1751830531561,12.31119327,2538.5,2538.4,0.002]
[1751830535332,12.31133975,2538.5,2538.4,0.002]
[1751830540062,2.31133975,2538.5,2538.4,0.002]
[1751830544083,2.31142704,2538.5,2538.4,3.94148944]
[1751830544270,2.31142704,2538.5,2538.4,0.002]
[1751830544775,2.31137402,2538.5,2538.4,0.002]
[1751830545872,1.937,2538.8,2538.7,3.9390239]
[1751830546089,1.937,2538.8,2538.7,0.9585]
[1751830546296,1.937,2538.8,2538.7,4.8975239]
[1751830547288,1.937,2538.8,2538.7,0.9585]
[1751830547488,1.937,2538.8,2538.7,0.1968]
[1751830549010,1.937,2538.8,2538.7,4.1358239]
[1751830549186,1.937,2538.8,2538.7,5.01949406]
[1751830549698,1.937,2538.8,2538.7,4.1358239]
[1751830550569,1.937,2538.8,2538.7,0.1968]
[1751830552000,0.001,2538.8,2538.7,0.9585]
[1751830554498,0.001,2538.8,2538.7,0.1968]
[1751830557113,0.001,2538.8,2538.7,4.1358239]
[1751830557414,0.001,2538.8,2538.7,0.1968]
[1751830558013,0.001,2538.8,2538.7,4.1358239]
[1751830558682,0.001,2538.8,2538.7,0.1968]
[1751830559788,0.001,2538.8,2538.6,0.002]
[1751830566699,0.001,2538.8,2538.7,3.9390239]
[1751830567325,0.001,2538.8,2538.7,4.82955168]
[1751830567525,0.001,2538.8,2538.7,5.80955168]
[1751830569095,0.001,2538.8,2538.7,5.84894191]
[1751830570502,0.001,2538.8,2538.7,5.80955168]
[1751830570700,0.001,2538.8,2538.7,5.84894191]
[1751830571312,0.001,2538.8,2538.7,5.80955168]
[1751830572099,0.001,2538.8,2538.7,1.87052778]
[1751830572424,0.001,2538.8,2538.7,4.9190239]
[1751830578559,0.001,2538.8,2538.7,4.95841413]
[1751830579755,0.001,2538.8,2538.7,4.9190239]
[1751830583749,0.001,2538.8,2538.7,12.8710239]
[1751830587089,0.001,2538.8,2538.7,13.7710239]
[1751830587392,0.001,2538.8,2538.7,16.76395268]
[1751830589778,1e-08,2538.8,2538.7,16.76395268]
[1751830589953,1e-08,2538.8,2538.7,20.27654642]
[1751830591294,1e-08,2538.8,2538.7,16.76395268]
[1751830594008,1e-08,2538.8,2538.7,29.53105795]
[1751830598478,1e-08,2538.8,2538.7,20.82654642]
[1751830611192,1e-08,2538.8,2538.7,17.31395268]
[1751830615225,1e-08,2538.8,2538.7,8.02875268]
[1751830615521,1e-08,2538.8,2538.7,19.49546253]
[1751830620929,1e-08,2538.8,2538.7,20.29666253]
[1751830621124,1e-08,2538.8,2538.7,16.77895268]
[1751830622510,1e-08,2538.8,2538.7,19.49755417]
[1751830627154,1e-08,2539.0,2538.9,3.93871361]
[1751830627333,0.7658,2539.6,2539.5,3.93778302]
[1751830627506,0.7658,2539.6,2539.5,12.12296085]
[1751830627707,0.7658,2539.6,2539.5,12.08358302]
[1751830628227,0.7658,2539.6,2539.5,0.1968]
[1751830628400,0.7658,2539.6,2539.1,3.51980149]
[1751830628602,0.7623,2539.1,2539.0,3.51980149]
[1751830628846,0.7623,2539.0,2538.7,3.93892655]
[1751830629015,0.7623,2538.8,2538.6,0.1988]
[1751830629217,9.46681153,2538.7,2538.6,0.002]
[1751830630813,13.40583543,2538.7,2538.6,0.002]
[1751830634130,9.46681153,2538.7,2538.6,0.002]
[1751830634311,10.55278327,2538.7,2538.6,0.002]
[1751830635121,12.48578327,2538.7,2538.6,0.002]
[1751830635323,11.39981153,2538.7,2538.6,0.002]
[1751830635514,2.6953,2538.7,2538.6,0.002]
[1751830635714,2.6953,2538.7,2538.6,3.94117907]
[1751830636560,2.6953,2538.7,2538.6,0.002]
[1751830637551,2.6953,2538.7,2538.6,3.94117907]
[1751830637975,11.68902153,2538.7,2538.6,0.002]
[1751830638975,25.62804543,2538.7,2538.6,0.002]
[1751830645536,21.68902153,2538.7,2538.6,0.002]
[1751830646865,20.94751,2538.7,2538.6,0.002]
[1751830648248,33.59104543,2538.7,2538.6,0.002]
[1751830651755,23.69504543,2538.7,2538.6,0.002]
[1751830651954,33.58804543,2538.7,2538.6,0.002]
[1751830655686,33.9561955,2538.7,2538.6,0.002]
[1751830655858,33.95620539,2538.7,2538.6,0.002]
[1751830658868,33.66999539,2538.7,2538.6,0.002]
[1751830659270,10.36815996,2538.7,2538.6,0.002]
[1751830659450,28.97067149,2538.7,2538.6,0.002]
[1751830659651,28.97179663,2538.7,2538.6,0.002]
[1751830660756,33.69912053,2538.7,2538.6,0.002]
[1751830662589,33.69915075,2538.7,2538.6,0.002]
[1751830667180,19.86212685,2538.7,2538.6,0.002]
[1751830667372,29.76312685,2538.7,2538.6,0.002]
[1751830667593,33.70215075,2538.7,2538.6,0.002]
[1751830667776,29.76312685,2538.7,2538.6,0.002]
[1751830668288,33.70215075,2538.7,2538.6,0.002]
[1751830674708,33.33283543,2538.7,2538.6,0.002]
[1751830675007,33.70226836,2538.7,2538.6,0.002]
[1751830675389,33.7022711,2538.7,2538.6,0.002]
[1751830675603,33.70227141,2538.7,2538.6,0.002]
[1751830678081,33.70229746,2538.7,2538.6,0.002]
[1751830681706,34.25229746,2538.7,2538.6,0.002]
[1751830683018,33.88283543,2538.7,2538.6,0.002]
[1751830683227,34.2523436,2538.7,2538.6,0.002]
[1751830686135,34.2522259,2538.7,2538.6,0.002]
[1751830686320,34.25222321,2538.7,2538.6,0.002]
[1751830688499,1.3668,2538.5,2538.4,0.002]
[1751830688701,32.33703356,2538.5,2538.4,0.002]
[1751830689306,32.53409783,2538.5,2538.4,0.002]
[1751830690020,14.68628944,2538.4,2538.3,0.0450518]
[1751830690218,15.87247722,2538.4,2538.3,0.0450518]
[1751830695539,25.76447722,2538.4,2538.3,0.0450518]
[1751830697030,33.91798875,2538.4,2538.3,0.0450518]
[1751830697232,4.48995508,2538.1,2538.0,0.002]
[1751830697452,20.97085439,2538.1,2538.0,0.002]
[1751830698344,20.97015669,2538.1,2538.0,0.002]
[1751830699063,20.97015629,2538.1,2538.0,0.002]
[1751830701426,20.60146661,2538.1,2538.0,0.002]
[1751830701755,20.97012829,2538.1,2538.0,0.002]
[1751830701965,31.77952829,2538.1,2538.0,0.002]
[1751830702284,3.94026557,2537.9,2537.8,0.0450518]
[1751830702569,31.52343384,2537.9,2537.8,0.0450518]
[1751830702953,23.56343384,2537.9,2537.8,0.0450518]
[1751830703263,32.91643384,2537.9,2537.8,0.0450518]
[1751830704858,32.91543384,2537.9,2537.8,0.0450518]
[1751830707683,32.91443384,2537.9,2537.8,0.0450518]
[1751830708757,32.91543384,2537.9,2537.8,0.0450518]
[1751830709268,33.46543384,2537.9,2537.8,0.0450518]
[1751830711255,34.25813384,2537.9,2537.8,0.0450518]
[1751830711708,5.28343139,2537.6,2537.5,0.002]
[1751830711911,31.95394292,2537.6,2537.5,0.002]
[1751830712119,32.32259966,2537.6,2537.5,0.002]
[1751830714000,23.01389966,2537.6,2537.5,0.002]
[1751830714204,32.91589966,2537.6,2537.5,0.002]
[1751830715005,23.01389966,2537.6,2537.5,0.002]
[1751830715207,28.97416827,2537.6,2537.5,0.002]
[1751830715389,32.91489966,2537.6,2537.5,0.002]
[1751830719901,32.54624292,2537.6,2537.5,0.002]
[1751830720115,32.91516496,2537.6,2537.5,0.002]
[1751830720511,32.54624292,2537.6,2537.5,0.002]
[1751830720708,32.91516138,2537.6,2537.5,0.002]
[1751830724190,34.26946138,2537.6,2537.5,0.002]
[1751830724902,23.19555354,2537.4,2537.3,0.0430518]
[1751830725104,39.297472,2537.4,2537.3,0.0430518]
[1751830725298,40.101772,2537.4,2537.3,0.0430518]
[1751830727395,40.101772,2537.4,2537.0,0.0029208]
[1751830727396,4.49150802,2537.1,2537.0,0.0029208]
[1751830727628,32.33423801,2537.1,2537.0,0.0029208]
[1751830727845,3.94207766,2536.8,2536.3,0.8499518]
[1751830728023,14.13846338,2537.0,2536.3,0.8499518]
[1751830728024,12.64710733,2536.4,2536.3,0.0430518]
[1751830728322,20.61510733,2536.4,2536.3,0.0430518]
[1751830728523,30.61510733,2536.4,2536.3,0.0430518]
[1751830728744,30.98407273,2536.4,2536.3,0.0430518]
[1751830729096,30.61510733,2536.4,2536.3,0.0430518]
[1751830729297,30.98409096,2536.4,2536.3,0.0430518]
[1751830729922,27.04149516,2536.4,2536.3,0.0430518]
[1751830730822,30.98409096,2536.4,2536.3,0.0430518]
[1751830732733,23.01609096,2536.4,2536.3,0.0430518]
[1751830732945,30.98209096,2536.4,2536.3,0.0430518]
[1751830733103,34.24119096,2536.4,2536.3,0.0430518]
[1751830735323,34.24029643,2536.4,2536.3,0.0430518]
[1751830735904,34.2401952,2536.4,2536.3,0.0450518]
[1751830738648,34.2400259,2536.4,2536.3,0.0450518]
[1751830741149,34.24003816,2536.4,2536.3,0.0450518]
[1751830747336,42.01003816,2536.4,2536.3,0.0450518]
[1751830752651,41.64220733,2536.4,2536.3,0.0450518]
[1751830752863,42.01043862,2536.4,2536.3,0.0450518]
[1751830753877,22.64804019,2535.8,2535.7,0.0430518]
[1751830754056,32.93527148,2535.8,2535.7,0.0430518]
[1751830756375,19.07274282,2535.8,2535.7,0.0430518]
[1751830756671,24.23375995,2535.8,2535.7,0.0430518]
[1751830757253,20.29023129,2535.8,2535.7,0.0430518]
[1751830757455,10.36823129,2535.8,2535.7,0.0430518]
[1751830757659,2.31123129,2535.8,2535.7,0.7979518]
[1751830757841,10.29223129,2535.8,2535.7,0.7979518]
[1751830758784,10.29328124,2535.8,2535.7,0.7979518]
[1751830759085,0.36928124,2535.8,2535.7,0.7979518]
[1751830759283,10.29328124,2535.8,2535.7,0.7979518]
[1751830759659,10.48808124,2535.8,2535.7,0.7979518]
[1751830759878,19.19259277,2535.8,2535.7,0.7979518]
[1751830760284,10.48808124,2535.8,2535.7,0.7979518]
[1751830761886,10.48808124,2535.8,2535.7,0.7479518]
[1751830764293,10.48808124,2535.8,2535.7,4.69163598]
[1751830764460,10.48808124,2535.8,2535.7,0.7479518]
[1751830764659,0.56608124,2535.8,2535.7,4.69163598]
[1751830764879,2.31228124,2535.8,2535.7,5.55689824]
[1751830765055,0.36928124,2535.8,2535.7,5.59633508]
[1751830765257,2.1398,2536.1,2535.9,3.94337316]
[1751830765484,0.36948571,2536.0,2535.9,3.94337316]
[1751830765890,0.36948571,2536.0,2535.9,0.7762]
[1751830767999,2.1398,2536.1,2535.9,0.7762]
[1751830768303,0.3694595,2536.0,2535.9,0.7762]
[1751830768527,0.36943374,2536.0,2535.9,0.7762]
[1751830769905,0.36943374,2536.0,2535.9,4.71957316]
[1751830770078,0.36943374,2536.0,2535.9,5.28200039]
[1751830771205,2.1398,2536.1,2535.9,5.28200039]
[1751830771399,0.3693612,2536.0,2535.9,5.28200039]
[1751830771988,1.943,2536.5,2536.3,3.94275125]
[1751830772188,0.36933562,2536.4,2536.2,3.94283047]
[1751830772419,0.36933562,2536.3,2536.2,4.13963047]
[1751830772717,0.36933562,2536.3,2536.2,4.90663047]
[1751830772918,0.36933562,2536.4,2536.2,4.90663047]
[1751830773089,0.36933562,2536.3,2536.2,4.90663047]
[1751830773618,0.36933562,2536.4,2536.2,4.90663047]
[1751830773811,0.36933562,2536.3,2536.2,4.90663047]
[1751830774013,0.36933562,2536.4,2536.3,3.94275125]
[1751830774332,0.36906285,2536.4,2536.3,4.70535125]
[1751830774833,1.942,2536.7,2536.4,3.9425958]